[Event "32nd NATO Chess Championship"]
[Site "Tartu, Estonia"]
[Date "2022.06.28"]
[Round "3.1"]
[White "Graczyk, Damian"]
[Black "Stein, Robert"]
[Result "0-1"]
[TimeControl "90 min + 30 sec increment from move one"]
[BlackTitle "FM"]
[WhiteFideId "1170716"]
[BlackFideId "12921084"]
[WhiteElo "2151"]
[BlackElo "2365"]

1. d4 {[%clk 01:30:56]} {[%emt 00:00:03]} d5 {[%clk 01:30:51]} {[%emt
00:00:10]} 2. Nf3 {[%clk 01:30:43]} {[%emt 00:00:42]} e6 {[%clk 01:29:37]}
{[%emt 00:01:44]} 3. c4 {[%clk 01:30:19]} {[%emt 00:00:55]} a6 {[%clk
01:30:01]} {[%emt 00:00:06]} 4. cxd5 {[%clk 01:29:33]} {[%emt 00:01:15]} exd5
{[%clk 01:30:24]} {[%emt 00:00:07]} 5. Nc3 {[%clk 01:30:00]} {[%emt 00:00:04]}
h6 {[%clk 01:28:44]} {[%emt 00:02:09]} 6. Bf4 {[%clk 01:26:25]} {[%emt
00:04:05]} Nf6 {[%clk 01:28:24]} {[%emt 00:00:50]} 7. e3 {[%clk 01:26:35]}
{[%emt 00:00:20]} Bd6 {[%clk 01:28:14]} {[%emt 00:00:40]} 8. Bxd6 {[%clk
01:24:13]} {[%emt 00:02:53]} Qxd6 {[%clk 01:28:36]} {[%emt 00:00:07]} 9. Qc2
{[%clk 01:24:32]} {[%emt 00:00:11]} O-O {[%clk 01:23:27]} {[%emt 00:05:38]} 10.
Bd3 {[%clk 01:24:19]} {[%emt 00:00:44]} Bg4 {[%clk 01:06:26]} {[%emt 00:17:32]}
11. Ne5 {[%clk 01:22:22]} {[%emt 00:02:26]} c5 {[%clk 01:06:38]} {[%emt
00:00:17]} 12. Nxg4 {[%clk 01:21:47]} {[%emt 00:01:06]} Nxg4 {[%clk 01:03:45]}
{[%emt 00:03:22]} 13. dxc5 {[%clk 01:21:52]} {[%emt 00:00:26]} Qxc5 {[%clk
01:03:52]} {[%emt 00:00:24]} 14. Ne2 {[%clk 01:19:08]} {[%emt 00:03:13]} Qd6
{[%clk 01:00:12]} {[%emt 00:04:09]} 15. h3 {[%clk 00:54:01]} {[%emt 00:25:38]}
Ne5 {[%clk 00:58:05]} {[%emt 00:02:36]} 16. O-O {[%clk 00:53:27]} {[%emt
00:01:05]} Nbc6 {[%clk 00:57:16]} {[%emt 00:01:19]} 17. a3 {[%clk 00:53:14]}
{[%emt 00:00:43]} Rac8 {[%clk 00:52:54]} {[%emt 00:04:51]} 18. Qd2 {[%clk
00:52:08]} {[%emt 00:01:37]} Rfd8 {[%clk 00:50:39]} {[%emt 00:02:45]} 19. Rfd1
{[%clk 00:51:50]} {[%emt 00:00:48]} Qf6 {[%clk 00:47:30]} {[%emt 00:03:40]} 20.
Nd4 {[%clk 00:44:54]} {[%emt 00:07:25]} Nxd4 {[%clk 00:42:54]} {[%emt
00:05:06]} 21. exd4 {[%clk 00:45:22]} {[%emt 00:00:03]} Nc6 {[%clk 00:34:21]}
{[%emt 00:09:02]} 22. Be2 {[%clk 00:42:36]} {[%emt 00:03:15]} Re8 {[%clk
00:32:03]} {[%emt 00:02:49]} 23. Bf3 {[%clk 00:42:45]} {[%emt 00:00:21]} Nxd4
{[%clk 00:30:36]} {[%emt 00:01:57]} 24. Qxd4 {[%clk 00:35:22]} {[%emt
00:07:52]} Re1+ {[%clk 00:30:40]} {[%emt 00:00:26]} 25. Kh2 {[%clk 00:35:50]}
{[%emt 00:00:03]} Qxd4 {[%clk 00:31:03]} {[%emt 00:00:07]} 26. Rxd4 {[%clk
00:36:18]} {[%emt 00:00:02]} Rxa1 {[%clk 00:31:22]} {[%emt 00:00:10]} 27. Rxd5
{[%clk 00:36:46]} {[%emt 00:00:03]} Rac1 {[%clk 00:17:22]} {[%emt 00:14:30]} 28.
Rd7 {[%clk 00:33:43]} {[%emt 00:03:32]} b5 {[%clk 00:14:34]} {[%emt 00:03:17]}
29. Bb7 {[%clk 00:30:56]} {[%emt 00:03:19]} Rb8 {[%clk 00:14:36]} {[%emt
00:00:28]} 30. Bd5 {[%clk 00:23:48]} {[%emt 00:07:39]} Rc2 {[%clk 00:12:23]}
{[%emt 00:02:42]} 31. Rxf7 {[%clk 00:22:17]} {[%emt 00:02:01]} Kh8 {[%clk
00:12:23]} {[%emt 00:00:30]} 32. Ra7 {[%clk 00:13:23]} {[%emt 00:09:24]} Rxb2
{[%clk 00:06:21]} {[%emt 00:06:32]} 33. Rxa6 {[%clk 00:11:10]} {[%emt
00:02:43]} Rxf2 {[%clk 00:06:47]} {[%emt 00:00:04]} 34. Ra5 {[%clk 00:10:32]}
{[%emt 00:01:08]} Rc2 {[%clk 00:05:11]} {[%emt 00:02:04]} 35. Be4 {[%clk
00:09:18]} {[%emt 00:01:45]} Rc3 {[%clk 00:05:05]} {[%emt 00:00:36]} 36. Bf5
{[%clk 00:09:19]} {[%emt 00:00:28]} Rc7 {[%clk 00:03:24]} {[%emt 00:02:08]} 37.
Bd3 {[%clk 00:09:05]} {[%emt 00:00:46]} Rcb7 {[%clk 00:03:40]} {[%emt
00:00:17]} 38. Be4 {[%clk 00:06:59]} {[%emt 00:02:34]} Rb6 {[%clk 00:04:06]}
{[%emt 00:00:05]} 39. Bf3 {[%clk 00:06:26]} {[%emt 00:01:03]} g6 {[%clk
00:03:12]} {[%emt 00:01:24]} 40. h4 {[%clk 00:06:28]} {[%emt 00:00:27]} Kg7
{[%clk 00:03:18]} {[%emt 00:00:24]} 41. Kg3 {[%clk 00:03:19]} {[%emt 00:03:39]}
Kf6 {[%clk 00:02:31]} {[%emt 00:01:18]} 42. h5 {[%clk 00:02:54]} {[%emt
00:00:55]} g5 {[%clk 00:01:37]} {[%emt 00:01:24]} 43. Ra7 {[%clk 00:02:59]}
{[%emt 00:00:25]} Ke5 {[%clk 00:01:55]} {[%emt 00:00:11]} 44. Kg4 {[%clk
00:01:40]} {[%emt 00:01:49]} Rd8 {[%clk 00:02:11]} {[%emt 00:00:13]} 45. Re7+
{[%clk 00:01:54]} {[%emt 00:00:17]} Kd4 {[%clk 00:01:43]} {[%emt 00:00:58]} 46.
Re1 {[%clk 00:00:34]} {[%emt 00:01:51]} Kc3 {[%clk 00:01:47]} {[%emt 00:00:25]}
47. Rb1 {[%clk 00:00:52]} {[%emt 00:00:13]} Rd4+ {[%clk 00:01:50]} {[%emt
00:00:26]} 48. Kf5 {[%clk 00:00:58]} {[%emt 00:00:24]} Kc2 {[%clk 00:01:16]}
{[%emt 00:01:05]} 49. Re1 {[%clk 00:00:59]} {[%emt 00:00:28]} Kb2 {[%clk
00:01:08]} {[%emt 00:00:37]} 50. Re7 {[%clk 00:01:03]} {[%emt 00:00:27]} Kxa3
{[%clk 00:01:21]} {[%emt 00:00:18]} 51. Ke5 {[%clk 00:01:12]} {[%emt 00:00:20]}
Rdd6 {[%clk 00:01:01]} {[%emt 00:00:49]} 52. Bd5 {[%clk 00:00:34]} {[%emt
00:01:09]} b4 {[%clk 00:01:10]} {[%emt 00:00:22]} 53. Be4 {[%clk 00:00:33]}
{[%emt 00:00:31]} b3 {[%clk 00:01:33]} {[%emt 00:00:07]} 54. Ra7+ {[%clk
00:00:46]} {[%emt 00:00:16]} Kb4 {[%clk 00:01:26]} {[%emt 00:00:38]} 55. Rg7
{[%clk 00:01:14]} {[%emt 00:00:02]} Re6+ {[%clk 00:01:22]} {[%emt 00:00:34]} 56.
Kf5 {[%clk 00:01:31]} {[%emt 00:00:13]} Rxe4 {[%clk 00:01:51]} {[%emt
00:00:01]} 0-1

[Event "32nd NATO Chess Championship"]
[Site "Tartu, Estonia"]
[Date "2022.06.28"]
[Round "3.2"]
[White "Pedersen, Finn"]
[Black "Bohn, Ulrich"]
[Result "1/2-1/2"]
[TimeControl "90 min + 30 sec increment from move one"]
[WhiteTitle "FM"]
[WhiteFideId "1400762"]
[BlackFideId "4656105"]
[WhiteElo "2300"]
[BlackElo "2168"]

1. Nf3 {[%clk 01:30:50]} {[%emt 00:00:08]} g6 {[%clk 01:30:37]} {[%emt
00:00:24]} 2. d4 {[%clk 01:29:55]} {[%emt 00:01:26]} Bg7 {[%clk 01:31:00]}
{[%emt 00:00:06]} 3. c3 {[%clk 01:27:23]} {[%emt 00:03:02]} d6 {[%clk
01:27:30]} {[%emt 00:04:00]} 4. Bf4 {[%clk 01:26:58]} {[%emt 00:00:53]} Nd7
{[%clk 01:26:53]} {[%emt 00:01:09]} 5. e4 {[%clk 01:26:22]} {[%emt 00:01:06]}
e5 {[%clk 01:25:57]} {[%emt 00:01:26]} 6. dxe5 {[%clk 01:26:34]} {[%emt
00:00:18]} Nxe5 {[%clk 01:24:21]} {[%emt 00:02:06]} 7. Nxe5 {[%clk 01:25:14]}
{[%emt 00:01:50]} dxe5 {[%clk 01:24:43]} {[%emt 00:00:09]} 8. Qxd8+ {[%clk
01:25:30]} {[%emt 00:00:13]} Kxd8 {[%clk 01:25:09]} {[%emt 00:00:05]} 9. Be3
{[%clk 01:25:42]} {[%emt 00:00:17]} Be6 {[%clk 01:24:52]} {[%emt 00:00:47]} 10.
Nd2 {[%clk 01:25:45]} {[%emt 00:00:27]} Bh6 {[%clk 01:22:45]} {[%emt 00:02:37]}
11. Bxh6 {[%clk 01:24:47]} {[%emt 00:01:27]} Nxh6 {[%clk 01:23:12]} {[%emt
00:00:04]} 12. Bc4 {[%clk 01:23:49]} {[%emt 00:01:28]} Ke7 {[%clk 01:23:11]}
{[%emt 00:00:30]} 13. Bxe6 {[%clk 01:23:17]} {[%emt 00:01:03]} Kxe6 {[%clk
01:23:28]} {[%emt 00:00:13]} 14. f3 {[%clk 01:22:26]} {[%emt 00:01:20]} Rad8
{[%clk 01:22:22]} {[%emt 00:01:37]} 15. Ke2 {[%clk 01:21:20]} {[%emt 00:01:35]}
Rd7 {[%clk 01:20:24]} {[%emt 00:02:30]} 16. Nb3 {[%clk 01:20:44]} {[%emt
00:01:05]} b6 {[%clk 01:20:43]} {[%emt 00:00:11]} 17. Rhd1 {[%clk 01:21:00]}
{[%emt 00:00:14]} Rhd8 {[%clk 01:21:08]} {[%emt 00:00:05]} 18. Rxd7 {[%clk
01:21:17]} {[%emt 00:00:13]} Rxd7 {[%clk 01:21:37]} {[%emt 00:00:01]} 19. a4
{[%clk 01:20:01]} {[%emt 00:01:45]} a5 {[%clk 01:21:33]} {[%emt 00:00:34]} 20.
Nd2 {[%clk 01:19:20]} {[%emt 00:01:11]} Ng8 {[%clk 00:34:50]} {[%emt 00:47:13]}
21. b4 {[%clk 01:15:58]} {[%emt 00:03:52]} axb4 {[%clk 00:33:33]} {[%emt
00:01:48]} 22. cxb4 {[%clk 01:16:21]} {[%emt 00:00:07]} Ne7 {[%clk 00:33:48]}
{[%emt 00:00:14]} 23. Rc1 {[%clk 01:03:21]} {[%emt 00:13:30]} Rd4 {[%clk
00:28:27]} {[%emt 00:05:51]} 24. Nc4 {[%clk 00:56:25]} {[%emt 00:07:26]} c6
{[%clk 00:24:47]} {[%emt 00:04:10]} 25. b5 {[%clk 00:48:36]} {[%emt 00:08:19]}
cxb5 {[%clk 00:21:42]} {[%emt 00:03:36]} 26. axb5 {[%clk 00:48:52]} {[%emt
00:00:14]} f5 {[%clk 00:15:21]} {[%emt 00:06:52]} 27. Ke3 {[%clk 00:45:36]}
{[%emt 00:03:45]} fxe4 {[%clk 00:15:31]} {[%emt 00:00:20]} 28. fxe4 {[%clk
00:45:24]} {[%emt 00:00:41]} Nc8 {[%clk 00:12:47]} {[%emt 00:03:15]} 29. h4
{[%clk 00:42:25]} {[%emt 00:03:28]} Na7 {[%clk 00:12:56]} {[%emt 00:00:22]} 30.
Nxb6 {[%clk 00:42:12]} {[%emt 00:00:43]} Nxb5 {[%clk 00:13:02]} {[%emt
00:00:24]} 31. Nc4 {[%clk 00:37:33]} {[%emt 00:05:07]} Nd6 {[%clk 00:12:40]}
{[%emt 00:00:54]} 32. Nxd6 {[%clk 00:37:51]} {[%emt 00:00:12]} Rxd6 {[%clk
00:12:43]} {[%emt 00:00:27]} 33. Rc7 {[%clk 00:37:42]} {[%emt 00:00:38]} h5
{[%clk 00:13:01]} {[%emt 00:00:13]} 34. Rc3 {[%clk 00:35:10]} {[%emt 00:03:02]}
1/2-1/2

[Event "32nd NATO Chess Championship"]
[Site "Tartu, Estonia"]
[Date "2022.06.28"]
[Round "3.3"]
[White "Keough, Robert"]
[Black "Pavlidis, Anastasios"]
[Result "0-1"]
[TimeControl "90 min + 30 sec increment from move one"]
[BlackTitle "IM"]
[WhiteFideId "410667"]
[BlackFideId "4208404"]
[WhiteElo "2074"]
[BlackElo "2296"]

1. e4 {[%clk 01:30:58]} {[%emt 00:00:01]} d6 {[%clk 01:30:43]} {[%emt
00:00:17]} 2. d4 {[%clk 01:31:11]} {[%emt 00:00:18]} Nf6 {[%clk 01:31:01]}
{[%emt 00:00:10]} 3. Nc3 {[%clk 01:30:50]} {[%emt 00:00:53]} Nbd7 {[%clk
01:31:10]} {[%emt 00:00:19]} 4. f4 {[%clk 01:30:25]} {[%emt 00:00:57]} e5
{[%clk 01:30:07]} {[%emt 00:01:31]} 5. Nf3 {[%clk 01:30:18]} {[%emt 00:00:38]}
exd4 {[%clk 01:29:10]} {[%emt 00:01:27]} 6. Qxd4 {[%clk 01:29:10]} {[%emt
00:01:38]} c6 {[%clk 01:28:34]} {[%emt 00:01:05]} 7. Be2 {[%clk 01:19:53]}
{[%emt 00:09:48]} d5 {[%clk 01:16:43]} {[%emt 00:12:20]} 8. exd5 {[%clk
01:11:13]} {[%emt 00:09:11]} Bc5 {[%clk 01:16:55]} {[%emt 00:00:17]} 9. Qd3
{[%clk 01:09:59]} {[%emt 00:01:45]} O-O {[%clk 01:16:26]} {[%emt 00:00:58]} 10.
d6 {[%clk 01:00:43]} {[%emt 00:09:48]} Nb6 {[%clk 01:05:01]} {[%emt 00:11:52]}
11. Be3 {[%clk 00:48:25]} {[%emt 00:12:50]} Bxe3 {[%clk 00:52:36]} {[%emt
00:12:55]} 12. Qxe3 {[%clk 00:48:26]} {[%emt 00:00:29]} Qxd6 {[%clk 00:46:47]}
{[%emt 00:06:18]} 13. Ne5 {[%clk 00:45:11]} {[%emt 00:03:47]} Nfd5 {[%clk
00:41:45]} {[%emt 00:05:31]} 14. Qd2 {[%clk 00:43:39]} {[%emt 00:02:02]} f6
{[%clk 00:40:04]} {[%emt 00:02:11]} 15. Nxd5 {[%clk 00:40:35]} {[%emt
00:03:35]} Qxd5 {[%clk 00:32:02]} {[%emt 00:08:30]} 16. Qxd5+ {[%clk 00:40:24]}
{[%emt 00:00:42]} Nxd5 {[%clk 00:32:13]} {[%emt 00:00:18]} 17. Nd3 {[%clk
00:40:01]} {[%emt 00:00:55]} Ne3 {[%clk 00:28:55]} {[%emt 00:03:47]} 18. Kd2
{[%clk 00:39:39]} {[%emt 00:00:52]} Nxg2 {[%clk 00:27:37]} {[%emt 00:01:47]} 19.
h4 {[%clk 00:37:48]} {[%emt 00:02:21]} Bf5 {[%clk 00:27:04]} {[%emt 00:01:02]}
20. Rh2 {[%clk 00:26:05]} {[%emt 00:12:13]} Bxd3 {[%clk 00:27:06]} {[%emt
00:00:30]} 21. Rxg2 {[%clk 00:26:29]} {[%emt 00:00:06]} Bxe2 {[%clk 00:25:40]}
{[%emt 00:01:56]} 22. Rxe2 {[%clk 00:21:43]} {[%emt 00:05:16]} Rfe8 {[%clk
00:25:15]} {[%emt 00:00:55]} 23. Rg2 {[%clk 00:20:08]} {[%emt 00:02:05]} Rad8+
{[%clk 00:25:36]} {[%emt 00:00:09]} 24. Kc3 {[%clk 00:19:45]} {[%emt 00:00:51]}
Re3+ {[%clk 00:25:54]} {[%emt 00:00:13]} 25. Kb4 {[%clk 00:19:59]} {[%emt
00:00:17]} Re4+ {[%clk 00:25:41]} {[%emt 00:00:42]} 26. c4 {[%clk 00:20:20]}
{[%emt 00:00:10]} Rxf4 {[%clk 00:25:33]} {[%emt 00:00:38]} 27. Re1 {[%clk
00:19:43]} {[%emt 00:01:06]} Rd7 {[%clk 00:20:46]} {[%emt 00:05:18]} 28. Re8+
{[%clk 00:17:57]} {[%emt 00:02:16]} Kf7 {[%clk 00:21:02]} {[%emt 00:00:13]} 29.
Ra8 {[%clk 00:18:23]} {[%emt 00:00:06]} b6 {[%clk 00:15:55]} {[%emt 00:05:35]}
30. h5 {[%clk 00:15:50]} {[%emt 00:03:03]} Rh4 {[%clk 00:16:09]} {[%emt
00:00:16]} 31. h6 {[%clk 00:15:32]} {[%emt 00:00:49]} Rxh6 {[%clk 00:16:19]}
{[%emt 00:00:19]} 32. Rc8 {[%clk 00:15:59]} {[%emt 00:00:04]} c5+ {[%clk
00:16:14]} {[%emt 00:00:35]} 33. Kb5 {[%clk 00:16:25]} {[%emt 00:00:04]} f5
{[%clk 00:16:13]} {[%emt 00:00:30]} 34. Re2 {[%clk 00:16:02]} {[%emt 00:00:53]}
f4 {[%clk 00:15:27]} {[%emt 00:01:16]} 35. Ree8 {[%clk 00:15:44]} {[%emt
00:00:50]} Rf6 {[%clk 00:15:41]} {[%emt 00:00:14]} 36. a4 {[%clk 00:12:40]}
{[%emt 00:03:35]} f3 {[%clk 00:14:55]} {[%emt 00:01:14]} 37. Re1 {[%clk
00:13:02]} {[%emt 00:00:09]} f2 {[%clk 00:14:56]} {[%emt 00:00:29]} 38. Rf1
{[%clk 00:13:27]} {[%emt 00:00:06]} Re7 {[%clk 00:15:00]} {[%emt 00:00:25]} 39.
a5 {[%clk 00:13:10]} {[%emt 00:00:48]} Re1 {[%clk 00:15:03]} {[%emt 00:00:26]}
40. Rc7+ {[%clk 00:13:30]} {[%emt 00:00:11]} Kg6 {[%clk 00:15:15]} {[%emt
00:00:16]} 41. Rxf2 {[%clk 00:13:26]} {[%emt 00:00:36]} Rxf2 {[%clk 00:15:27]}
{[%emt 00:00:17]} 42. axb6 {[%clk 00:13:53]} {[%emt 00:00:04]} Rxb2+ {[%clk
00:15:35]} {[%emt 00:00:22]} 43. Kxc5 {[%clk 00:14:18]} {[%emt 00:00:06]} axb6+
{[%clk 00:15:55]} {[%emt 00:00:09]} 0-1

[Event "32nd NATO Chess Championship"]
[Site "Tartu, Estonia"]
[Date "2022.06.28"]
[Round "3.4"]
[White "Wang, Eigen"]
[Black "Pavlidou, Ekaterini"]
[Result "1-0"]
[TimeControl "90 min + 30 sec increment from move one"]
[BlackTitle "WIM"]
[WhiteFideId "2008777"]
[BlackFideId "4213262"]
[WhiteElo "2293"]
[BlackElo "2146"]

1. d4 {[%clk 01:30:51]} {[%emt 00:00:08]} Nf6 {[%clk 01:30:26]} {[%emt
00:00:35]} 2. c4 {[%clk 01:31:15]} {[%emt 00:00:07]} e6 {[%clk 01:30:47]}
{[%emt 00:00:08]} 3. Nc3 {[%clk 01:31:37]} {[%emt 00:00:10]} Bb4 {[%clk
01:29:51]} {[%emt 00:01:24]} 4. Bd2 {[%clk 01:31:11]} {[%emt 00:00:56]} O-O
{[%clk 01:28:56]} {[%emt 00:01:25]} 5. e3 {[%clk 01:31:05]} {[%emt 00:00:36]}
b6 {[%clk 01:26:33]} {[%emt 00:02:54]} 6. Nf3 {[%clk 01:30:48]} {[%emt
00:00:46]} Bb7 {[%clk 01:26:26]} {[%emt 00:00:38]} 7. Bd3 {[%clk 01:31:06]}
{[%emt 00:00:11]} d5 {[%clk 01:25:49]} {[%emt 00:01:06]} 8. cxd5 {[%clk
01:30:40]} {[%emt 00:00:56]} exd5 {[%clk 01:26:06]} {[%emt 00:00:13]} 9. Ne5
{[%clk 01:30:12]} {[%emt 00:00:59]} a6 {[%clk 01:16:49]} {[%emt 00:09:47]} 10.
O-O {[%clk 01:29:42]} {[%emt 00:00:59]} Nbd7 {[%clk 01:01:28]} {[%emt
00:15:52]} 11. f4 {[%clk 01:28:09]} {[%emt 00:02:03]} c5 {[%clk 00:31:44]}
{[%emt 00:30:15]} 12. a3 {[%clk 01:21:32]} {[%emt 00:07:06]} Bxc3 {[%clk
00:25:03]} {[%emt 00:07:11]} 13. Bxc3 {[%clk 01:21:33]} {[%emt 00:00:29]} c4
{[%clk 00:21:52]} {[%emt 00:03:41]} 14. Bf5 {[%clk 01:19:33]} {[%emt 00:02:29]}
Re8 {[%clk 00:18:59]} {[%emt 00:03:23]} 15. g4 {[%clk 01:02:09]} {[%emt
00:17:55]} Nf8 {[%clk 00:09:46]} {[%emt 00:09:43]} 16. g5 {[%clk 01:00:21]}
{[%emt 00:02:18]} Ne4 {[%clk 00:05:08]} {[%emt 00:05:07]} 17. Bxe4 {[%clk
00:59:00]} {[%emt 00:01:52]} dxe4 {[%clk 00:05:36]} {[%emt 00:00:02]} 18. d5
{[%clk 00:53:41]} {[%emt 00:05:48]} b5 {[%clk 00:02:24]} {[%emt 00:03:43]} 19.
Qh5 {[%clk 00:51:07]} {[%emt 00:03:04]} Bxd5 {[%clk 00:01:34]} {[%emt
00:01:19]} 20. Rad1 {[%clk 00:50:30]} {[%emt 00:01:07]} Rxe5 {[%clk 00:01:09]}
{[%emt 00:00:56]} 21. Bxe5 {[%clk 00:50:41]} {[%emt 00:00:18]} Ra7 {[%clk
00:01:38]} {[%emt 00:00:02]} 22. Rd2 {[%clk 00:47:07]} {[%emt 00:04:04]} Rd7
{[%clk 00:01:52]} {[%emt 00:00:16]} 23. Rfd1 {[%clk 00:47:01]} {[%emt
00:00:36]} Ng6 {[%clk 00:00:55]} {[%emt 00:01:27]} 24. Bc3 {[%clk 00:47:05]}
{[%emt 00:00:26]} Ne7 {[%clk 00:00:32]} {[%emt 00:00:53]} 25. Qg4 {[%clk
00:44:20]} {[%emt 00:03:15]} Qc7 {[%clk 00:00:39]} {[%emt 00:00:22]} 26. Bb4
{[%clk 00:42:57]} {[%emt 00:01:53]} Qa7 {[%clk 00:00:31]} {[%emt 00:00:39]} 27.
Bxe7 {[%clk 00:42:29]} {[%emt 00:00:57]} Qxe3+ {[%clk 00:00:53]} {[%emt
00:00:08]} 28. Kf1 {[%clk 00:41:31]} {[%emt 00:01:29]} 1-0

[Event "32nd NATO Chess Championship"]
[Site "Tartu, Estonia"]
[Date "2022.06.28"]
[Round "3.5"]
[White "Sauer, Marko"]
[Black "Papasimakopoulos, Alexandros"]
[Result "0-1"]
[TimeControl "90 min + 30 sec increment from move one"]
[BlackTitle "CM"]
[WhiteFideId "1270766"]
[BlackFideId "4244125"]
[WhiteElo "2065"]
[BlackElo "2259"]

1. e4 {[%emt 02:23:03]} e6 {[%emt 00:00:07]} 2. d4 {[%emt 00:00:33]} d5 {[%emt
00:00:07]} 3. Nc3 {[%emt 00:00:54]} Bb4 {[%emt 00:00:11]} 4. Bd2 {[%emt
00:00:44]} dxe4 {[%emt 00:00:11]} 5. Qg4 {[%emt 00:00:49]} Qxd4 {[%emt
00:04:17]} 6. O-O-O {[%emt 00:01:29]} f5 {[%emt 00:04:16]} 7. Qh4 {[%emt
00:11:51]} Be7 {[%emt 00:00:52]} 8. Qg3 {[%emt 00:01:09]} Bd6 {[%emt 00:00:43]}
9. Qh4 {[%emt 00:07:18]} Bd7 {[%emt 00:03:04]} 10. Nb5 {[%emt 00:09:54]} Qf6
{[%emt 00:09:36]} 11. Nxd6+ {[%emt 00:11:32]} cxd6 {[%emt 00:00:05]} 12. Qg3
{[%emt 00:00:09]} Nc6 {[%emt 00:03:59]} 13. Qxd6 {[%emt 00:10:17]} O-O-O {[%emt
00:00:31]} 14. Nh3 {[%emt 00:07:07]} h6 {[%emt 00:02:16]} 15. Bc3 {[%emt
00:04:37]} e5 {[%emt 00:00:29]} 16. Qa3 {[%emt 00:01:55]} Qe7 {[%emt 00:03:04]}
17. Qa4 {[%emt 00:04:28]} Qc5 {[%emt 00:04:20]} 18. Bb5 {[%emt 00:05:19]} Nge7
{[%emt 00:01:37]} 19. Rd2 {[%emt 00:06:35]} Nd5 {[%emt 00:03:02]} 20. Qb3
{[%emt 00:07:21]} Nd4 {[%emt 00:05:51]} 21. Bxd4 {[%emt 00:02:46]} exd4 {[%emt
00:00:08]} 22. Qc4 {[%emt 00:00:59]} b6 {[%emt 00:01:14]} 23. Bxd7+ {[%emt
00:00:12]} Rxd7 {[%emt 00:00:38]} 24. Rxd4 {[%emt 00:00:11]} Qxc4 {[%emt
00:01:45]} 25. Rxc4+ {[%emt 00:00:01]} Kb7 {[%emt 00:03:40]} 26. Rd1 {[%emt
00:01:02]} g5 {[%emt 00:03:34]} 27. Rcd4 {[%emt 00:00:19]} Kc6 {[%emt
00:00:25]} 28. Ng1 {[%emt 00:01:08]} Rhd8 {[%emt 00:05:24]} 29. c4 {[%emt
00:01:33]} Nb4 {[%emt 00:01:05]} 30. Rxd7 {[%emt 00:01:04]} Rxd7 {[%emt
00:00:06]} 31. Rxd7 {[%emt 00:00:16]} Kxd7 {[%emt 00:00:04]} 32. Ne2 {[%emt
00:00:53]} Nd3+ {[%emt 00:01:30]} 33. Kc2 {[%emt 00:00:05]} Nxf2 {[%emt
00:00:06]} 34. b4 {[%emt 00:00:37]} Ng4 {[%emt 00:00:48]} 35. Kc3 {[%emt
00:00:54]} Nxh2 {[%emt 00:01:12]} 36. Kd4 {[%emt 00:00:39]} Ng4 {[%emt
00:00:07]} 37. a4 {[%emt 00:00:27]} Kc6 {[%emt 00:02:19]} 38. Nc3 {[%emt
00:00:58]} e3 {[%emt 00:00:57]} 39. Ne2 {[%emt 00:00:03]} h5 {[%emt 00:00:34]}
40. Kd3 {[%emt 00:00:12]} f4 {[%emt 00:00:30]} 41. Ke4 {[%emt 00:00:41]} Nh6
{[%emt 00:02:41]} 42. g3 {[%emt 00:01:38]} fxg3 {[%emt 00:00:37]} 43. Nxg3
{[%emt 00:00:18]} h4 {[%emt 00:00:17]} 44. Ne2 {[%emt 00:00:04]} h3 {[%emt
00:00:31]} 45. Nd4+ {[%emt 00:01:41]} Kd7 {[%emt 00:00:15]} 46. Kf3 {[%emt
00:00:26]} g4+ {[%emt 00:00:32]} 47. Kg3 {[%emt 00:00:25]} Kd6 {[%emt
00:00:59]} 48. Ne2 {[%emt 00:00:44]} Nf5+ {[%emt 00:00:10]} 49. Kh2 {[%emt
00:00:12]} Ke5 {[%emt 00:00:20]} 50. c5 {[%emt 00:00:52]} bxc5 {[%emt
00:00:11]} 51. bxc5 {[%emt 00:00:01]} Kd5 {[%emt 00:00:10]} 0-1